fUSD/lending_fUSD_20250331
["ID","MTS","AMOUNT","RATE_DAILY","PERIOD"]
[356916413,1743432648924,-182.24451257,0.00046849,120]
[356916414,1743432648973,-500.0,0.00046849,120]
[356916415,1743432649017,-511.83377667,0.00046849,120]
[356916416,1743432649064,-511.49292703,0.00046849,120]
[356916417,1743432649111,-514.40153097,0.00046849,120]
[356916418,1743432649158,-500.0,0.00046849,120]
[356916419,1743432649204,-506.44166004,0.00046849,120]
[356916420,1743432649253,-500.0,0.00046849,120]
[356916421,1743432649299,-531.85653049,0.00046849,120]
[356916422,1743432649345,-500.0,0.00046849,120]
[356916423,1743432649390,-500.0,0.00046849,120]
[356916424,1743432649437,-500.0,0.00046849,120]
[356916425,1743432649485,-506.50751809,0.00046849,120]
[356916426,1743432649530,-500.0,0.00046849,120]
[356916427,1743432649574,-509.34761221,0.00046849,120]
[356916428,1743432649617,-500.0,0.00046849,120]
[356916429,1743432649661,-500.0,0.00046849,120]
[356916430,1743432649704,-520.35583728,0.00046849,120]
[356916431,1743432649752,-537.81,0.00046849,120]
[356916432,1743432649799,-500.0,0.00046849,120]
[356916433,1743432649841,-505.54637247,0.00046849,120]
[356916434,1743432649886,-500.0,0.00046849,120]
[356916435,1743432649929,-512.99131765,0.00046849,120]
[356916436,1743432649974,-507.97576142,0.00046849,120]
[356916437,1743432650018,-499.93393613,0.00046849,120]
[356916438,1743432650059,-507.36875607,0.00046849,120]
[356916439,1743432650102,-500.0,0.00046849,120]
[356916440,1743432650144,-524.83698853,0.00046849,120]
[356916441,1743432650188,-500.0,0.00046849,120]
[356916442,1743432650231,-567.44,0.00046849,120]
[356916443,1743432650276,-517.03972956,0.00046849,120]
[356916444,1743432650320,-514.36554462,0.00046849,120]
[356916445,1743432650362,-509.7444168,0.00046849,120]
[356916446,1743432650406,-503.33455427,0.00046849,120]
[356916447,1743432650449,-611.05889641,0.00046849,120]
[356916448,1743432650493,-500.0,0.00046849,120]
[356916449,1743432650535,-648.2,0.00046849,120]
[356916450,1743432650579,-500.0,0.00046849,120]
[356916451,1743432650623,-507.72978728,0.00046849,120]
[356916452,1743432650669,-508.4507951,0.00046849,120]
[356916453,1743432650716,-511.02735327,0.00046849,120]
[356916454,1743432650762,-500.0,0.00046849,120]
[356916455,1743432650806,-506.33304059,0.00046849,120]
[356916456,1743432650849,-500.0,0.00046849,120]
[356916457,1743432650893,-620.53,0.00046849,120]
[356916458,1743432650935,-500.0,0.00046849,120]
[356916459,1743432650977,-529.52889739,0.00046849,120]
[356916460,1743432651020,-500.0,0.00046849,120]
[356916461,1743432651061,-505.8292291,0.00046849,120]
[356916462,1743432651103,-500.0,0.00046849,120]
[356916463,1743432651144,-505.86763813,0.00046849,120]
[356916464,1743432651187,-501.46084276,0.00046849,120]
[356916465,1743432651231,-1313.12,0.00046849,120]
[356916466,1743432651277,-500.0,0.00046849,120]
[356916467,1743432651323,-522.11375952,0.00046849,120]
[356916468,1743432651370,-503.32,0.00046849,120]
[356916469,1743432651417,-500.7557278,0.00046849,120]
[356916470,1743432651462,-500.0,0.00046849,120]
[356916471,1743432651510,-500.0,0.00046849,120]
[356916472,1743432651554,-500.0,0.00046849,120]
[356916473,1743432651599,-503.46252387,0.00046849,120]
[356916474,1743432651652,-497.49895379,0.00046849,120]
[356916475,1743432651697,-500.0,0.00046849,120]
[356916476,1743432651739,-506.00378504,0.00046849,120]
[356916477,1743432651890,-500.0,0.00046849,120]
[356916478,1743432651940,-478.89378716,0.00046849,120]
[356916479,1743432651983,-509.13556296,0.00046849,120]
[356916480,1743432652029,-500.0,0.00046849,120]
[356916481,1743432652077,-500.0,0.00046849,120]
[356916482,1743432652124,-500.0,0.00046849,120]
[356916483,1743432652169,-502.43784908,0.00046849,120]
[356916484,1743432652214,-507.63975186,0.00046849,120]
[356916485,1743432652263,-507.08113405,0.00046849,120]
[356916486,1743432652306,-500.0,0.00046849,120]
[356916487,1743432652354,-500.0,0.00046849,120]
[356916488,1743432652398,-500.0,0.00046849,120]
[356916489,1743432652442,-502.51887403,0.00046849,120]
[356916490,1743432652486,-505.78214179,0.00046849,120]
[356916491,1743432652529,-500.0,0.00046849,120]
[356916492,1743432652573,-505.32373103,0.00046849,120]
[356916493,1743432652619,-511.89656093,0.00046849,120]
[356916494,1743432652662,-611.26,0.00046849,120]
[356916495,1743432652707,-500.0,0.00046849,120]
[356916496,1743432652756,-508.99423307,0.00046849,120]
[356916497,1743432652799,-504.14517093,0.00046849,120]
[356916498,1743432652844,-506.66466642,0.00046849,120]
[356916499,1743432652889,-508.2862521,0.00046849,120]
[356916500,1743432652934,-516.76445418,0.00046849,120]
[356916501,1743432652980,-500.0,0.00046849,120]
[356916502,1743432653021,-275.44765586,0.00046849,120]
[356916503,1743432653063,-550.88552001,0.00046849,120]
[356916504,1743432653105,-302.25217575,0.00046849,120]
[356916505,1743432653150,-500.0,0.00046849,120]
[356916506,1743432653194,-500.0,0.00046849,120]
[356916507,1743432653238,-505.07474741,0.00046849,120]
[356916508,1743432653283,-500.0,0.00046849,120]
[356916509,1743432653328,-500.0,0.00046849,120]
[356916510,1743432653373,-500.0,0.00046849,120]
[356916511,1743432653416,-500.0,0.00046849,120]
[356916512,1743432653462,-872.99,0.00046849,120]
[356916513,1743432653512,-500.0,0.00046849,120]
[356916514,1743432653558,-506.73280963,0.00046849,120]
[356916515,1743432653606,-500.0,0.00046849,120]
[356916516,1743432653651,-320.94771169,0.00046849,120]
[356916517,1743432653707,-208.41212936,0.00046849,120]
[356916518,1743432653757,-508.76721145,0.00046849,120]
[356916519,1743432653802,-500.0,0.00046849,120]
[356916520,1743432653848,-505.54307072,0.00046849,120]
[356916521,1743432653895,-519.01167763,0.00046849,120]
[356916522,1743432653941,-500.0,0.00046849,120]
[356916523,1743432653985,-509.17471664,0.00046849,120]
[356916524,1743432654029,-512.29269733,0.00046849,120]
[356916525,1743432654075,-500.0,0.00046849,120]
[356916526,1743432654123,-500.0,0.00046849,120]
[356916527,1743432654168,-500.0,0.00046849,120]
[356916528,1743432654213,-500.0,0.00046849,120]
[356916529,1743432654263,-517.61553573,0.00046849,120]
[356916530,1743432654311,-500.0,0.00046849,120]
[356916531,1743432654358,-509.25534282,0.00046849,120]
[356916532,1743432654403,-509.88342151,0.00046849,120]
[356916533,1743432654449,-503.24247167,0.00046849,120]
[356916534,1743432654494,-500.0,0.00046849,120]
[356916535,1743432654541,-509.14778183,0.00046849,120]
[356916536,1743432654588,-243.079109,0.00046849,120]
[356916537,1743432654638,-500.0,0.00046849,120]
[356916538,1743432654687,-500.0,0.00046849,120]
[356916539,1743432654732,-581.63423755,0.00046849,120]
[356916540,1743432654777,-503.99990832,0.00046849,120]
[356916541,1743432654823,-500.0,0.00046849,120]
[356916542,1743432654868,-522.09819051,0.00046849,120]
[356916543,1743432654914,-500.0,0.00046849,120]
[356916544,1743432654958,-500.0,0.00046849,120]
[356916545,1743432655012,-163.25207,0.00047123,120]
[356916546,1743432655059,-186.228725,0.00047123,120]
[356916547,1743432655105,-660.633536,0.00047123,120]
[356916548,1743432655151,-301.95779193,0.00047123,120]
[356916549,1743432655194,-492.29851907,0.00047123,120]
[356916550,1743432655239,-282.90241414,0.00047123,120]
[356916551,1743432655285,-500.0,0.00047123,120]
[356916552,1743432655331,-484.04,0.00047123,120]
[356916553,1743432655376,-500.0,0.00047123,120]
[356916554,1743432655422,-500.0,0.00047123,120]
[356916555,1743432655467,-500.0,0.00047123,120]
[356916556,1743432655516,-500.0,0.00047123,120]
[356916557,1743432655563,-500.0,0.00047123,120]
[356916558,1743432655611,-500.0,0.00047123,120]
[356916559,1743432655658,-500.0,0.00047123,120]
[356916560,1743432655703,-500.0,0.00047123,120]
[356916561,1743432655749,-500.0,0.00047123,120]
[356916562,1743432655798,-500.0,0.00047123,120]
[356916563,1743432655845,-500.0,0.00047123,120]
[356916564,1743432655893,-500.0,0.00047123,120]
[356916565,1743432655939,-504.7106012,0.00047123,120]
[356916566,1743432655986,-500.0,0.00047123,120]
[356916567,1743432656034,-500.0,0.00047123,120]
[356916568,1743432656081,-639.20658584,0.00047123,120]
[356916569,1743432656128,-500.0,0.00047123,120]
[356916570,1743432656177,-500.0,0.00047123,120]
[356916571,1743432656378,-500.0,0.00047123,120]
[356916572,1743432656429,-500.0,0.00047123,120]
[356916573,1743432656482,-500.0,0.00047123,120]
[356916574,1743432656528,-500.0,0.00047123,120]
[356916575,1743432656575,-500.0,0.00047123,30]
[356916576,1743432656622,-500.0,0.00047123,120]
[356916577,1743432656671,-500.0,0.00047123,120]
[356916578,1743432656717,-348.01215305,0.00047123,120]
[356916579,1743432656767,-500.0,0.00047123,120]
[356916580,1743432656811,-500.0,0.00047123,120]
[356916581,1743432656854,-500.0,0.00047123,120]
[356916582,1743432656898,-500.0,0.00047123,120]
[356916583,1743432656941,-500.0,0.00047123,120]
[356916584,1743432656987,-500.0,0.00047123,120]
[356916585,1743432657031,-500.0,0.00047123,120]
[356916586,1743432657075,-500.0,0.00047123,120]
[356916587,1743432657119,-500.0,0.00047123,120]
[356916588,1743432657165,-500.0,0.00047123,120]
[356916589,1743432657211,-500.0,0.00047123,120]
[356916590,1743432657262,-500.0,0.00047123,120]
[356916591,1743432657309,-500.0,0.00047123,120]
[356916592,1743432657354,-500.0,0.00047123,120]
[356916593,1743432657401,-500.0,0.00047123,120]
[356916594,1743432657448,-500.0,0.00047123,120]
[356916595,1743432657497,-500.0,0.00047123,120]
[356916596,1743432657543,-500.0,0.00047123,120]
[356916597,1743432657590,-500.0,0.00047123,120]
[356916598,1743432657643,-500.0,0.00047123,120]
[356916599,1743432657691,-500.0,0.00047123,120]
[356916600,1743432657736,-500.0,0.00047123,120]
[356916601,1743432657781,-500.0,0.00047123,120]
[356916602,1743432657827,-500.0,0.00047123,120]
[356916603,1743432657872,-500.0,0.00047123,120]
[356916604,1743432657916,-500.0,0.00047123,120]
[356916605,1743432657963,-500.0,0.00047123,120]
[356916606,1743432658011,-500.0,0.00047123,120]
[356916607,1743432658055,-500.0,0.00047123,120]
[356916608,1743432658102,-500.0,0.00047123,120]
[356916609,1743432658149,-750.0,0.00047123,120]
[356916610,1743432658195,-500.0,0.00047123,120]
[356916611,1743432658241,-500.0,0.00047123,120]
[356916612,1743432658286,-500.0,0.00047123,120]
[356916613,1743432658331,-500.0,0.00047123,120]
[356916614,1743432658377,-500.0,0.00047123,120]
[356916615,1743432658423,-500.0,0.00047123,120]
[356916616,1743432658467,-500.0,0.00047123,120]
[356916617,1743432658513,-500.0,0.00047123,120]
[356916618,1743432658557,-500.0,0.00047123,120]
[356916619,1743432658603,-500.0,0.00047123,120]
[356916620,1743432658650,-500.0,0.00047123,120]
[356916621,1743432658695,-500.0,0.00047123,120]
[356916622,1743432658739,-500.0,0.00047123,120]
[356916623,1743432658785,-500.0,0.00047123,120]
[356916624,1743432658830,-500.0,0.00047123,120]
[356916625,1743432658874,-506.64656094,0.00047123,120]
[356916626,1743432658916,-500.0,0.00047123,120]
[356916627,1743432658960,-500.0,0.00047123,120]
[356916628,1743432659007,-322.26652172,0.00047123,120]
[356916629,1743432659053,-500.0,0.00047123,120]
[356916630,1743432659098,-500.0,0.00047123,120]
[356916631,1743432659142,-500.0,0.00047123,120]
[356916632,1743432659188,-500.0,0.00047123,120]
[356916633,1743432659234,-500.0,0.00047123,120]
[356916634,1743432659279,-500.0,0.00047123,120]
[356916635,1743432659325,-500.0,0.00047123,120]
[356916636,1743432659371,-500.0,0.00047123,120]
[356916637,1743432659418,-500.0,0.00047123,120]
[356916638,1743432659465,-500.0,0.00047123,120]
[356916639,1743432659514,-500.0,0.00047123,120]
[356916640,1743432659562,-500.0,0.00047123,120]
[356916641,1743432659612,-500.0,0.00047123,120]
[356916642,1743432659659,-500.0,0.00047123,120]
[356916643,1743432659704,-500.0,0.00047123,120]
[356916644,1743432659750,-338.35218314,0.00047123,120]
[356916645,1743432659795,-500.0,0.00047123,120]
[356916646,1743432659838,-521.08931772,0.00047123,120]
[356916647,1743432659884,-500.0,0.00047123,120]
[356916648,1743432659927,-500.0,0.00047123,120]
[356916649,1743432659972,-597.68617972,0.00047123,120]
[356916650,1743432660020,-500.0,0.00047123,120]
[356916651,1743432660067,-500.0,0.00047123,120]
[356916652,1743432660114,-500.0,0.00047123,120]
[356916653,1743432660158,-411.8,0.00047123,120]
[356916654,1743432660203,-537.81,0.00047123,120]
[356916655,1743432660250,-500.0,0.00047123,120]
[356916656,1743432660299,-500.0,0.00047123,120]
[356916657,1743432660348,-372.4337299,0.00047123,120]
[356916658,1743432660395,-567.44,0.00047123,120]
[356916659,1743432660443,-327.94,0.00047123,120]
[356916660,1743432660494,-500.0,0.00047123,120]
[356916661,1743432660542,-620.53,0.00047123,120]
[356916662,1743432660697,-500.0,0.00047123,120]
[356916663,1743432660744,-160.81359517,0.00047123,120]
[356916664,1743432660791,-1313.12,0.00047123,120]
[356916665,1743432660839,-441.44307566,0.00047123,120]
[356916666,1743432660886,-365.94789373,0.00047123,120]
[356916667,1743432660931,-500.0,0.00047123,120]
[356916668,1743432660978,-500.0,0.00047123,120]
[356916669,1743432661022,-500.0,0.00047123,120]
[356916670,1743432661069,-500.0,0.00047123,120]
[356916671,1743432661114,-500.0,0.00047123,120]
[356916672,1743432661161,-248.64019387,0.00047123,120]
[356916673,1743432661206,-500.0,0.00047123,120]
[356916674,1743432661251,-500.0,0.00047123,120]
[356916675,1743432661298,-500.0,0.00047123,120]
[356916676,1743432661343,-509.43432751,0.00047123,120]
[356916677,1743432661389,-500.0,0.00047123,120]
[356916678,1743432661437,-500.0,0.00047123,120]
[356916679,1743432661490,-500.00667763,0.00047123,120]
[356916680,1743432661539,-519.47813308,0.00047123,120]
[356916681,1743432661588,-500.0,0.00047123,120]
[356916682,1743432661643,-872.99,0.00047123,120]
[356916683,1743432661691,-463.16,0.00047123,120]
[356916684,1743432661739,-305.62459501,0.00047123,120]
[356916685,1743432661787,-512.5,0.00047123,120]
[356916686,1743432661835,-500.0,0.00047123,120]
[356916687,1743432661882,-500.0,0.00047123,120]
[356916688,1743432661927,-516.2053227,0.00047123,120]
[356916689,1743432661972,-348.83730812,0.00047123,120]
[356916690,1743432662022,-500.0,0.00047123,120]
[356916691,1743432662068,-549.39856787,0.00047123,120]
[356916692,1743432662117,-243.079109,0.00047123,120]
[356916693,1743432662161,-528.43681497,0.00047123,120]
[356916694,1743432662207,-511.26147938,0.00047123,120]
[356916695,1743432662257,-500.0,0.00047123,120]
[356916696,1743432662300,-342.8650243,0.00047123,120]
[356916697,1743432662343,-500.0,0.00047397,120]
[356916698,1743432662386,-500.0,0.00047397,120]
[356916699,1743432662430,-500.0,0.00047397,120]
[356916700,1743432662474,-500.0,0.00047397,120]
[356916701,1743432662522,-500.0,0.00047397,120]
[356916702,1743432662566,-500.0,0.00047397,120]
[356916703,1743432662610,-500.0,0.00047397,120]
[356916704,1743432662655,-500.0,0.00047397,120]
[356916705,1743432662698,-500.0,0.00047397,120]
[356916706,1743432662741,-500.0,0.00047397,120]
[356916707,1743432662783,-500.0,0.00047397,120]
[356916708,1743432662827,-500.0,0.00047397,120]
[356916709,1743432662873,-500.0,0.00047397,120]
[356916710,1743432662918,-500.0,0.00047397,120]
[356916711,1743432662961,-500.0,0.00047397,120]
[356916712,1743432663008,-500.0,0.00047397,120]
[356916713,1743432663053,-500.0,0.00047397,120]
[356916714,1743432663099,-500.0,0.00047397,120]
[356916715,1743432663145,-500.0,0.00047397,120]
[356916716,1743432663192,-500.0,0.00047397,120]
[356916717,1743432663239,-500.0,0.00047397,30]
[356916718,1743432663287,-500.0,0.00047397,120]
[356916719,1743432663334,-500.0,0.00047397,120]
[356916720,1743432663381,-500.0,0.00047397,120]
[356916721,1743432663428,-500.0,0.00047397,120]
[356916722,1743432663474,-500.0,0.00047397,120]
[356916723,1743432663527,-500.0,0.00047397,120]
[356916724,1743432663574,-500.0,0.00047397,120]
[356916725,1743432663624,-500.0,0.00047397,120]
[356916726,1743432663675,-500.0,0.00047397,120]
[356916727,1743432663725,-500.0,0.00047397,120]
[356916728,1743432663774,-500.0,0.00047397,120]
[356916729,1743432663822,-500.0,0.00047397,120]
[356916730,1743432663868,-500.0,0.00047397,120]
[356916731,1743432663915,-500.0,0.00047397,120]
[356916732,1743432663962,-500.0,0.00047397,120]
[356916733,1743432664012,-500.0,0.00047397,120]
[356916734,1743432664058,-500.0,0.00047397,120]
[356916735,1743432664105,-500.0,0.00047397,120]
[356916736,1743432664151,-500.0,0.00047397,120]
[356916737,1743432664199,-500.0,0.00047397,120]
[356916738,1743432664246,-500.0,0.00047397,120]
[356916739,1743432664292,-500.0,0.00047397,120]
[356916740,1743432664341,-500.0,0.00047397,120]
[356916741,1743432664388,-500.0,0.00047397,120]
[356916742,1743432664434,-500.0,0.00047397,120]
[356916743,1743432664486,-500.0,0.00047397,120]
[356916744,1743432664536,-500.0,0.00047397,120]
[356916745,1743432664584,-500.0,0.00047397,120]
[356916746,1743432664633,-500.0,0.00047397,120]
[356916747,1743432664682,-500.0,0.00047397,120]
[356916748,1743432664726,-500.0,0.00047397,120]
[356916749,1743432664881,-500.0,0.00047397,120]
[356916750,1743432664925,-750.0,0.00047397,120]
[356916751,1743432664969,-500.0,0.00047397,120]
[356916752,1743432665018,-500.0,0.00047397,120]
[356916753,1743432665062,-500.0,0.00047397,120]
[356916754,1743432665109,-500.0,0.00047397,120]
[356916755,1743432665155,-500.0,0.00047397,120]
[356916756,1743432665200,-500.0,0.00047397,120]
[356916757,1743432665244,-500.0,0.00047397,120]
[356916758,1743432665288,-500.0,0.00047397,120]
[356916759,1743432665332,-500.0,0.00047397,120]
[356916760,1743432665379,-500.0,0.00047397,120]
[356916761,1743432665423,-500.0,0.00047397,120]
[356916762,1743432665467,-500.0,0.00047397,120]
[356916763,1743432665514,-500.0,0.00047397,120]
[356916764,1743432665559,-500.0,0.00047397,120]
[356916765,1743432665603,-500.0,0.00047397,120]
[356916766,1743432665649,-367.08,0.00047397,120]
[356916767,1743432665695,-500.0,0.00047397,120]
[356916768,1743432665737,-500.0,0.00047397,120]
[356916769,1743432665782,-500.0,0.00047397,120]
[356916770,1743432665827,-500.0,0.00047397,120]
[356916771,1743432665871,-500.0,0.00047397,120]
[356916772,1743432665916,-500.0,0.00047397,120]
[356916773,1743432665961,-500.0,0.00047397,120]
[356916774,1743432666007,-500.0,0.00047397,120]
[356916775,1743432666052,-500.0,0.00047397,120]
[356916776,1743432666098,-273.4,0.00047397,120]
[356916777,1743432666144,-500.0,0.00047397,120]
[356916778,1743432666187,-500.0,0.00047397,120]
[356916779,1743432666231,-500.0,0.00047397,120]
[356916780,1743432666274,-500.0,0.00047397,120]
[356916781,1743432666317,-505.46,0.00047397,120]
[356916782,1743432666361,-500.0,0.00047397,120]
[356916783,1743432666405,-500.0,0.00047397,120]
[356916784,1743432666449,-500.0,0.00047397,120]
[356916785,1743432666494,-500.0,0.00047397,120]
[356916786,1743432666539,-500.0,0.00047397,120]
[356916787,1743432666584,-500.0,0.00047397,120]
[356916788,1743432666628,-500.0,0.00047397,120]
[356916789,1743432666672,-537.81,0.00047397,120]
[356916790,1743432666718,-500.0,0.00047397,120]
[356916791,1743432666762,-500.0,0.00047397,120]
[356916792,1743432666805,-567.44,0.00047397,120]
[356916793,1743432666850,-332.75,0.00047397,120]
[356916794,1743432666894,-620.53,0.00047397,120]
[356916795,1743432666939,-457.23,0.00047397,120]
[356916796,1743432666985,-1313.12,0.00047397,120]
[356916797,1743432667029,-500.0,0.00047397,120]
[356916798,1743432667074,-500.0,0.00047397,120]
[356916799,1743432667117,-500.0,0.00047397,120]
[356916800,1743432667160,-500.0,0.00047397,120]
[356916801,1743432667205,-500.0,0.00047397,120]
[356916802,1743432667251,-500.0,0.00047397,120]
[356916803,1743432667297,-500.0,0.00047397,120]
[356916804,1743432667344,-248.46,0.00047397,120]
[356916805,1743432667390,-603.28761901,0.00047397,120]
[356916806,1743432667434,-500.0,0.00047397,120]
[356916807,1743432667482,-500.0,0.00047397,120]
[356916808,1743432667526,-872.99,0.00047397,120]
[356916809,1743432667571,-500.0,0.00047397,120]
[356916810,1743432667616,-500.0,0.00047397,120]
[356916811,1743432667660,-500.0,0.00047397,120]
[356916812,1743432667706,-641.93211089,0.00047397,120]
[356916813,1743432667751,-500.0,0.00047671,120]
[356916814,1743432667794,-500.0,0.00047671,120]
[356916815,1743432667838,-500.0,0.00047671,120]
[356916816,1743432667881,-500.0,0.00047671,120]
[356916817,1743432667924,-506.79370595,0.00047671,120]
[356916818,1743432667968,-500.0,0.00047671,120]
[356916819,1743432668012,-527.05,0.00047671,120]
[356916820,1743432668056,-500.0,0.00047671,120]
[356916821,1743432668102,-500.0,0.00047671,120]
[356916822,1743432668146,-500.0,0.00047671,120]
[356916823,1743432668191,-500.0,0.00047671,120]
[356916824,1743432668236,-512.41293862,0.00047671,120]
[356916825,1743432668282,-500.0,0.00047671,120]
[356916826,1743432668328,-500.0,0.00047671,120]
[356916827,1743432668376,-500.0,0.00047671,120]
[356916828,1743432668424,-500.0,0.00047671,120]
[356916829,1743432668470,-500.0,0.00047671,120]
[356916830,1743432668521,-503.45,0.00047671,120]
[356916831,1743432668566,-500.0,0.00047671,120]
[356916832,1743432668612,-500.0,0.00047671,120]
[356916833,1743432668756,-500.0,0.00047671,30]
[356916834,1743432668806,-518.20201648,0.00047671,120]
[356916835,1743432668851,-500.0,0.00047671,120]
[356916836,1743432668893,-611.48608234,0.00047671,120]
[356916837,1743432668933,-520.87744379,0.00047671,120]
[356916838,1743432668975,-500.0,0.00047671,120]
[356916839,1743432669019,-536.41849977,0.00047671,120]
[356916840,1743432669060,-500.0,0.00047671,120]
[356916841,1743432669101,-500.0,0.00047671,120]
[356916842,1743432669144,-537.47334798,0.00047671,120]
[356916843,1743432669187,-529.18901399,0.00047671,120]
[356916844,1743432669233,-500.0,0.00047671,120]
[356916845,1743432669277,-500.0,0.00047671,120]
[356916846,1743432669320,-500.0,0.00047671,120]
[356916847,1743432669364,-500.0,0.00047671,120]
[356916848,1743432669409,-500.0,0.00047671,120]
[356916849,1743432669452,-500.0,0.00047671,120]
[356916850,1743432669495,-533.44475749,0.00047671,120]
[356916851,1743432669539,-515.2158778,0.00047671,120]
[356916852,1743432669584,-557.90548991,0.00047671,120]
[356916853,1743432669630,-500.0,0.00047671,120]
[356916854,1743432669676,-525.42508903,0.00047671,120]
[356916855,1743432669724,-540.64797676,0.00047671,120]
[356916856,1743432669773,-500.0,0.00047671,120]
[356916857,1743432669821,-539.78454187,0.00047671,120]
[356916858,1743432669865,-533.31298672,0.00047671,120]
[356916859,1743432669910,-531.11533633,0.00047671,120]
[356916860,1743432669955,-533.40360848,0.00047671,120]
[356916861,1743432669999,-500.0,0.00047671,120]
[356916862,1743432670044,-536.39372116,0.00047671,120]
[356916863,1743432670089,-500.0,0.00047671,120]
[356916864,1743432670132,-510.8313737,0.00047671,120]
[356916865,1743432670178,-500.0,0.00047671,120]
[356916866,1743432670223,-657.15321676,0.00047671,120]
[356916867,1743432670274,-500.0,0.00047671,120]
[356916868,1743432670321,-500.0,0.00047671,120]
[356916869,1743432670367,-500.0,0.00047671,120]
[356916870,1743432670412,-500.0,0.00047671,120]
[356916871,1743432670459,-526.19038151,0.00047671,120]
[356916872,1743432670505,-549.94275852,0.00047671,120]
[356916873,1743432670551,-500.0,0.00047671,120]
[356916874,1743432670603,-500.0,0.00047671,120]
[356916875,1743432670652,-531.4665511,0.00047671,120]
[356916876,1743432670697,-500.0,0.00047671,120]
[356916877,1743432670741,-500.0,0.00047671,120]
[356916878,1743432670790,-500.0,0.00047671,120]
[356916879,1743432670836,-500.0,0.00047671,120]
[356916880,1743432670881,-500.0,0.00047671,120]
[356916881,1743432670926,-500.0,0.00047671,120]
[356916882,1743432670972,-500.0,0.00047671,120]
[356916883,1743432671021,-500.0,0.00047671,120]
[356916884,1743432671065,-500.0,0.00047671,120]
[356916885,1743432671110,-402.95030356,0.00047671,120]
[356916886,1743432671155,-500.0,0.00047671,120]
[356916887,1743432671202,-500.0,0.00047671,120]
[356916888,1743432671246,-500.0,0.00047671,120]
[356916889,1743432671293,-500.0,0.00047671,120]
[356916890,1743432671342,-628.11094384,0.00047671,120]
[356916891,1743432671391,-500.0,0.00047671,120]
[356916892,1743432671438,-500.0,0.00047671,120]
[356916893,1743432671482,-500.0,0.00047671,120]
[356916894,1743432671528,-500.0,0.00047671,120]
[356916895,1743432671573,-500.0,0.00047671,120]
[356916896,1743432671619,-500.0,0.00047671,120]
[356916897,1743432671667,-500.0,0.00047671,120]
[356916898,1743432671714,-500.0,0.00047671,120]
[356916899,1743432671762,-500.0,0.00047671,120]
[356916900,1743432671812,-500.0,0.00047671,120]
[356916901,1743432671861,-500.0,0.00047671,120]
[356916902,1743432671909,-537.81,0.00047671,120]
[356916903,1743432671954,-500.0,0.00047671,120]
[356916904,1743432671998,-500.0,0.00047671,120]
[356916905,1743432672039,-567.44,0.00047671,120]
[356916906,1743432672082,-620.53,0.00047671,120]
[356916907,1743432672123,-1313.12,0.00047671,120]
[356916908,1743432672163,-500.0,0.00047671,120]
[356916909,1743432672203,-519.63924351,0.00047671,120]
[356916910,1743432672245,-500.0,0.00047671,120]
[356916911,1743432672293,-500.0,0.00047671,120]
[356916912,1743432672339,-500.0,0.00047671,120]